bitfinex/quotes_SOLUSD_20230110
["timestamp","ask_amount","ask_price","bid_price","bid_amount"]
[1673323704005,47.04,15.95,15.936,39.00061681]
[1673323704233,20.0,15.949,15.936,39.00061681]
[1673323704460,47.04,15.948,15.936,39.00061681]
[1673323705177,47.04,15.948,15.936,79.96134513]
[1673323705493,265.9579,15.952,15.937,47.08]
[1673323705704,218.9279,15.952,15.937,47.08]
[1673323706020,218.9279,15.952,15.938,39.00061681]
[1673323706211,218.9279,15.952,15.94,20.0]
[1673323706424,218.9279,15.952,15.941,47.06]
[1673323706650,218.9279,15.952,15.941,107.02134513]
[1673323706856,218.9279,15.952,15.942,19.00061681]
[1673323707269,218.9279,15.952,15.94,47.07]
[1673323707482,47.03,15.951,15.941,20.0]
[1673323707683,47.03,15.951,15.939,20.0]
[1673323711387,47.03,15.951,15.94,17.0]
[1673323711604,47.03,15.951,15.941,20.0]
[1673323711914,47.03,15.951,15.942,17.0]
[1673323712846,218.9279,15.952,15.943,20.0]
[1673323713165,218.9279,15.952,15.943,39.00061681]
[1673323713376,47.03,15.951,15.943,19.00061681]
[1673323713586,218.9279,15.952,15.943,19.00061681]
[1673323714221,218.9279,15.952,15.941,20.0]
[1673323714422,218.9279,15.952,15.941,39.00061681]
[1673323717787,47.03,15.951,15.941,39.00061681]
[1673323717996,47.03,15.951,15.942,17.0]
[1673323724106,20.0,15.95,15.942,17.0]
[1673323724309,20.0,15.95,15.936,47.08]
[1673323724513,67.04,15.949,15.933,67.09]
[1673323724720,20.0,15.948,15.933,39.00061681]
[1673323724936,67.04,15.949,15.933,39.00061681]
[1673323724937,47.05,15.947,15.933,39.00061681]
[1673323725259,20.0,15.947,15.933,39.00061681]
[1673323725471,47.05,15.946,15.933,39.00061681]
[1673323725889,47.05,15.946,15.935,17.0]
[1673323726200,47.04,15.948,15.935,17.0]
[1673323728199,47.04,15.948,15.929,20.0]
[1673323728200,20.0,15.947,15.929,20.0]
[1673323728393,47.05,15.946,15.93,39.00061681]
[1673323728605,47.05,15.946,15.931,20.0]
[1673323729151,119.338,15.945,15.931,20.0]
[1673323729341,47.06,15.944,15.932,17.0]
[1673323729550,47.06,15.944,15.933,20.0]
[1673323729758,158.4353,15.944,15.933,20.0]
[1673323729972,158.4353,15.944,15.933,39.00061681]
[1673323730304,158.4353,15.944,15.934,17.0]
[1673323730830,158.4353,15.944,15.933,39.00061681]
[1673323732400,158.4353,15.944,15.934,17.0]
[1673323732600,158.4353,15.944,15.935,20.0]
[1673323732807,47.03,15.953,15.936,64.08]
[1673323733035,119.5495,15.957,15.94,26.76]
[1673323733232,47.02,15.956,15.942,20.0]
[1673323733895,47.01,15.959,15.943,123.26110881]
[1673323734107,114.6614,15.96,15.944,20.0]
[1673323734300,114.6614,15.96,15.945,84.05]
[1673323734516,114.6614,15.96,15.946,20.0]
[1673323734727,114.6614,15.96,15.948,20.0]
[1673323734941,114.6614,15.96,15.949,47.04]
[1673323735147,114.6614,15.96,15.95,20.0]
[1673323735357,114.6614,15.96,15.951,37.0]
[1673323735686,114.6614,15.96,15.952,19.00061681]
[1673323735998,114.6614,15.96,15.953,17.0]
[1673323736213,114.6614,15.96,15.953,65.2158314]
[1673323736422,114.6614,15.96,15.954,19.00061681]
[1673323739466,114.6614,15.96,15.955,17.0]
[1673323739895,114.6614,15.96,15.955,36.00061681]
[1673323742716,20.0,15.959,15.95,20.0]
[1673323742926,20.0,15.959,15.947,20.0]
[1673323743140,67.01,15.959,15.947,20.0]
[1673323743449,67.01,15.959,15.947,39.00061681]
[1673323744499,67.01,15.959,15.948,17.0]
[1673323744722,67.01,15.959,15.949,20.0]
[1673323744938,67.01,15.959,15.95,17.0]
[1673323745156,67.01,15.959,15.951,20.0]
[1673323745370,67.01,15.959,15.952,17.0]
[1673323747578,47.01,15.959,15.952,17.0]
[1673323749686,20.0,15.958,15.952,17.0]
[1673323750201,20.0,15.958,15.93,153.68]
[1673323750399,47.02,15.957,15.931,40.1608]
[1673323750610,20.0,15.956,15.944,19.00061681]
[1673323750820,20.0,15.954,15.944,19.00061681]
[1673323751048,47.03,15.953,15.944,19.00061681]
[1673323751578,20.0,15.952,15.944,19.00061681]
[1673323752187,47.03,15.953,15.944,19.00061681]
[1673323758295,20.0,15.952,15.944,19.00061681]
[1673323758718,47.03,15.953,15.944,19.00061681]
[1673323759978,20.0,15.954,15.944,19.00061681]
[1673323760298,47.03,15.953,15.944,19.00061681]
[1673323763536,20.0,15.954,15.944,19.00061681]
[1673323763848,47.03,15.953,15.944,19.00061681]
[1673323765128,47.02,15.955,15.944,19.00061681]
[1673323765440,20.0,15.954,15.944,19.00061681]
[1673323765632,47.03,15.953,15.944,19.00061681]
[1673323766905,47.03,15.953,15.94,19.00061681]
[1673323767110,117.0318,15.952,15.942,20.0]
[1673323767537,117.0318,15.952,15.943,19.00061681]
[1673323771848,117.0318,15.952,15.944,17.0]
[1673323772250,117.0318,15.952,15.944,36.00061681]
[1673323772902,116.3373,15.957,15.945,47.05]
[1673323773117,116.3373,15.957,15.947,20.0]
[1673323773524,116.3373,15.957,15.948,19.00061681]
[1673323773727,116.3373,15.957,15.95,20.0]
[1673323773940,116.3373,15.957,15.951,17.0]
[1673323774483,116.3373,15.957,15.952,19.00061681]
[1673323778452,116.3373,15.957,15.953,17.0]
[1673323779416,20.0,15.956,15.942,47.06]
[1673323779630,47.02,15.955,15.944,19.00061681]
[1673323779831,20.0,15.954,15.944,19.00061681]
[1673323780047,20.0,15.954,15.941,20.0]
[1673323780782,20.0,15.952,15.941,20.0]
[1673323780993,128.2201,15.952,15.939,20.0]
[1673323781220,20.0,15.95,15.94,20.0]
[1673323784166,20.0,15.95,15.941,19.00061681]
[1673323785318,20.0,15.95,15.94,20.0]
[1673323785529,20.0,15.95,15.938,39.00061681]
[1673323786584,47.04,15.949,15.938,39.00061681]
[1673323786797,47.04,15.95,15.939,39.00061681]
[1673323787110,47.03,15.951,15.94,20.0]
[1673323789412,20.0,15.95,15.94,20.0]
[1673323790252,47.03,15.951,15.94,20.0]
[1673323790674,20.0,15.95,15.94,20.0]
[1673323801636,84.04,15.949,15.932,35.93]
[1673323801856,84.04,15.949,15.929,35.94]
[1673323802247,20.0,15.948,15.93,20.0]
[1673323802575,20.0,15.946,15.93,20.0]
[1673323802795,158.9214,15.945,15.931,19.00061681]
[1673323803192,20.0,15.944,15.931,19.00061681]
[1673323803402,20.0,15.942,15.931,19.00061681]
[1673323803613,47.06,15.943,15.931,19.00061681]
[1673323804895,47.06,15.943,15.932,17.0]
[1673323805624,20.0,15.942,15.931,19.00061681]
[1673323805833,47.06,15.941,15.931,19.00061681]
[1673323806246,47.06,15.943,15.931,19.00061681]
[1673323806568,159.8497,15.944,15.932,20.0]
[1673323807003,159.8497,15.944,15.933,19.00061681]
[1673323807514,159.8497,15.944,15.934,17.0]
[1673323812886,159.8497,15.944,15.933,19.00061681]
[1673323813078,20.0,15.943,15.933,19.00061681]
[1673323813507,159.8497,15.944,15.933,19.00061681]
[1673323820878,159.8497,15.944,15.93,20.0]
[1673323821074,159.8497,15.944,15.932,20.0]
[1673323821293,159.8497,15.944,15.933,17.0]
[1673323822041,159.8497,15.944,15.933,36.00061681]
[1673323822254,159.8497,15.944,15.934,20.0]
[1673323822446,159.8497,15.944,15.935,17.0]
[1673323823494,159.8497,15.944,15.933,19.00061681]
[1673323824964,47.06,15.944,15.933,19.00061681]
[1673323825176,108.2201,15.952,15.935,20.0]
[1673323825496,108.2201,15.952,15.937,20.0]
[1673323825695,108.2201,15.952,15.938,67.07]
[1673323825908,108.2201,15.952,15.939,20.0]
[1673323826235,108.2201,15.952,15.941,20.0]
[1673323826658,108.2201,15.952,15.942,19.00061681]
[1673323830025,108.2201,15.952,15.943,20.0]
[1673323830524,108.2201,15.952,15.944,19.00061681]
[1673323830741,108.2201,15.952,15.94,20.0]
[1673323830742,20.0,15.951,15.94,20.0]
[1673323830946,67.03,15.951,15.938,39.00061681]
[1673323831366,47.03,15.951,15.938,39.00061681]
[1673323831807,47.03,15.951,15.939,20.0]
[1673323832018,47.03,15.951,15.941,20.0]
[1673323832230,108.2201,15.952,15.941,20.0]
[1673323832546,108.2201,15.952,15.942,19.00061681]
[1673323833380,47.02,15.955,15.942,19.00061681]
[1673323833590,162.0155,15.959,15.943,67.06]
[1673323833806,162.0155,15.959,15.943,110.79406165]
[1673323834117,115.0055,15.959,15.945,20.0]
[1673323834314,115.0055,15.959,15.946,47.05]
[1673323834524,115.0055,15.959,15.948,20.0]
[1673323834857,115.0055,15.959,15.949,20.0]
[1673323836115,162.0155,15.959,15.949,20.0]
[1673323838947,20.0,15.958,15.949,20.0]
[1673323839465,114.6614,15.96,15.949,20.0]
[1673323839466,46.99,15.965,15.95,45.82061681]
[1673323839799,110.3641,15.966,15.951,56.00061681]
[1673323839994,46.99,15.965,15.952,20.0]
[1673323840193,46.99,15.965,15.952,39.00061681]
[1673323840412,46.99,15.965,15.953,19.00061681]
[1673323841063,46.99,15.965,15.954,17.0]
[1673323841473,20.0,15.964,15.954,17.0]
[1673323841878,66.99,15.965,15.954,17.0]
[1673323842100,20.0,15.964,15.954,17.0]
[1673323843774,46.99,15.965,15.955,19.00061681]
[1673323844203,20.0,15.964,15.955,19.00061681]
[1673323844408,20.0,15.964,15.951,20.0]
[1673323844623,20.0,15.964,15.952,19.00061681]
[1673323845567,20.0,15.964,15.953,17.0]
[1673323845881,20.0,15.964,15.953,36.00061681]
[1673323846090,46.99,15.965,15.953,36.00061681]
[1673323846733,20.0,15.964,15.953,36.00061681]
[1673323847260,110.3641,15.966,15.953,36.00061681]
[1673323847261,110.3641,15.966,15.953,79.73467846]
[1673323847665,110.3641,15.966,15.954,20.0]
[1673323849359,110.3641,15.966,15.955,17.0]
[1673323849572,20.0,15.965,15.955,17.0]
[1673323850192,20.0,15.965,15.953,62.73467846]
[1673323850833,20.0,15.965,15.954,17.0]
[1673323851873,110.3641,15.966,15.954,80.73406165]
[1673323852082,110.3641,15.966,15.955,20.0]
[1673323852505,110.3641,15.966,15.956,17.0]
[1673323853972,110.3641,15.966,15.954,63.73406165]
[1673323855342,110.3641,15.966,15.954,43.73406165]
[1673323855756,46.97,15.974,15.96,26.79]
[1673323855976,163.7556,15.975,15.961,20.0]
[1673323856186,163.7556,15.975,15.962,20.0]
[1673323856505,163.7556,15.975,15.962,82.73467846]
[1673323856717,163.7556,15.975,15.963,19.00061681]
[1673323858612,163.7556,15.975,15.964,17.0]
[1673323860929,116.7956,15.975,15.964,17.0]
[1673323861113,163.7556,15.975,15.964,36.00061681]
[1673323863548,163.7556,15.975,15.962,43.73406165]
[1673323863746,163.7556,15.975,15.961,20.0]
[1673323863952,20.0,15.974,15.958,20.0]
[1673323864178,46.97,15.973,15.958,20.0]
[1673323864378,20.0,15.972,15.958,20.0]
[1673323864585,46.98,15.971,15.958,20.0]
[1673323864802,20.0,15.97,15.958,20.0]
[1673323865011,46.98,15.969,15.959,17.0]
[1673323865223,46.98,15.969,15.96,20.0]
[1673323865442,46.98,15.969,15.961,17.0]
[1673323867236,20.0,15.968,15.961,17.0]
[1673323867446,46.99,15.967,15.961,17.0]
[1673323868055,46.99,15.967,15.962,19.00061681]
[1673323868268,46.98,15.971,15.962,19.00061681]
[1673323869210,20.0,15.97,15.962,19.00061681]
[1673323869420,46.98,15.969,15.962,19.00061681]
[1673323870492,46.98,15.969,15.895,1228.5]
[1673323870493,46.98,15.969,15.951,20.0]
[1673323870694,46.98,15.969,15.952,19.00061681]
[1673323870695,20.0,15.967,15.952,19.00061681]
[1673323870903,46.99,15.966,15.952,19.00061681]
[1673323871116,17.0,15.965,15.949,20.0]
[1673323871333,67.0,15.964,15.95,19.00061681]
[1673323871545,67.0,15.964,15.947,20.0]
[1673323871861,20.0,15.963,15.949,19.00061681]
[1673323872074,47.0,15.962,15.949,19.00061681]
[1673323872281,165.399,15.962,15.949,19.00061681]
[1673323872889,165.399,15.962,15.95,20.0]
[1673323873231,165.399,15.962,15.951,19.00061681]
[1673323874382,46.99,15.967,15.951,61.00134513]
[1673323874593,46.99,15.967,15.952,20.0]
[1673323874798,46.99,15.967,15.952,39.00061681]
[1673323875028,46.99,15.967,15.953,108.03134513]
[1673323875213,46.99,15.967,15.954,20.0]
[1673323875425,46.99,15.967,15.954,39.00061681]
[1673323875649,46.99,15.967,15.955,19.00061681]
[1673323876686,46.99,15.967,15.956,20.0]
[1673323877015,224.9961,15.968,15.957,61.00134513]
[1673323877220,224.9961,15.968,15.958,20.0]
[1673323877416,224.9961,15.968,15.958,81.00134513]
[1673323877626,20.0,15.967,15.959,19.00061681]
[1673323877953,20.0,15.967,15.96,17.0]
[1673323878277,224.9961,15.968,15.961,20.0]
[1673323878487,20.0,15.967,15.961,20.0]
[1673323879621,224.9961,15.968,15.961,39.00061681]
[1673323880057,224.9961,15.968,15.962,17.0]
[1673323881325,20.0,15.967,15.962,17.0]
[1673323881636,224.9961,15.968,15.962,17.0]
[1673323883195,20.0,15.967,15.962,17.0]
[1673323883427,224.9961,15.968,15.962,17.0]
[1673323884891,46.99,15.967,15.961,20.0]
[1673323885102,20.0,15.966,15.953,20.0]
[1673323885293,20.0,15.966,15.954,19.00061681]
[1673323885499,20.0,15.966,15.955,40.0]
[1673323885936,66.99,15.967,15.956,39.00061681]
[1673323886149,20.0,15.966,15.957,20.0]
[1673323886661,20.0,15.966,15.958,19.00061681]
[1673323886873,20.0,15.966,15.959,20.0]
[1673323887304,20.0,15.966,15.959,39.00061681]
[1673323888466,20.0,15.966,15.959,20.0]
[1673323888791,20.0,15.966,15.956,39.00061681]
[1673323890132,20.0,15.966,15.957,19.00061681]
[1673323890359,20.0,15.966,15.958,20.0]
[1673323890755,66.99,15.967,15.958,20.0]
[1673323890756,46.96,15.978,15.96,26.82]
[1673323890966,113.4192,15.975,15.96,26.53]
[1673323891200,20.0,15.974,15.961,106.01061681]
[1673323891418,20.0,15.974,15.961,148.01134513]
[1673323891724,20.0,15.974,15.962,19.00061681]
[1673323892770,20.0,15.974,15.962,39.00061681]
[1673323893174,20.0,15.974,15.963,19.00061681]
[1673323893400,20.0,15.974,15.961,67.01]
[1673323893614,20.0,15.974,15.961,86.01061681]
[1673323896143,160.3792,15.975,15.961,86.01061681]
[1673323896333,113.4192,15.975,15.962,20.0]
[1673323896764,113.4192,15.975,15.963,66.00061681]
[1673323897068,113.4192,15.975,15.964,39.00061681]
[1673323897393,113.4192,15.975,15.965,19.00061681]
[1673323898440,20.0,15.974,15.965,19.00061681]
[1673323900345,20.0,15.974,15.966,17.0]
[1673323900659,66.97,15.974,15.966,36.00061681]
[1673323901289,20.0,15.974,15.966,36.00061681]
[1673323904021,20.0,15.974,15.962,47.0]
[1673323904233,46.97,15.973,15.961,20.0]
[1673323904447,46.97,15.973,15.959,20.0]
[1673323904644,20.0,15.972,15.957,20.0]
[1673323904850,46.98,15.971,15.957,20.0]
[1673323905280,20.0,15.97,15.957,20.0]
[1673323905701,46.98,15.969,15.957,20.0]
[1673323906020,20.0,15.968,15.957,20.0]
[1673323906207,20.0,15.968,15.953,40.0]
[1673323906425,20.0,15.968,15.954,47.03]
[1673323906870,20.0,15.968,15.952,19.00061681]
[1673323906871,20.0,15.966,15.952,19.00061681]
[1673323907092,46.99,15.965,15.952,19.00061681]
[1673323908141,46.99,15.965,15.953,17.0]
[1673323908339,20.0,15.964,15.953,17.0]
[1673323908553,20.0,15.964,15.954,19.00061681]
[1673323909195,20.0,15.964,15.955,17.0]
[1673323909600,20.0,15.964,15.955,36.00061681]
[1673323910250,20.0,15.964,15.951,47.03]
[1673323910479,20.0,15.964,15.95,19.00061681]
[1673323910773,20.0,15.962,15.951,20.0]
[1673323911936,154.76915066,15.967,15.952,66.03061681]
[1673323912239,114.4575,15.967,15.953,40.0]
[1673323912458,114.4575,15.967,15.954,47.03]
[1673323912650,114.4575,15.967,15.955,20.0]
[1673323912868,114.4575,15.967,15.955,59.00061681]
[1673323913070,114.4575,15.967,15.956,19.00061681]
[1673323913391,111.8459,15.968,15.957,87.02]
[1673323913708,111.8459,15.968,15.957,67.02]
[1673323913953,111.8459,15.968,15.958,19.00061681]
[1673323914162,111.8459,15.968,15.959,20.0]
[1673323914580,111.8459,15.968,15.959,39.00061681]
[1673323917821,111.8459,15.968,15.959,20.0]
[1673323918152,20.0,15.967,15.957,20.0]
[1673323918356,20.0,15.967,15.959,19.00061681]
[1673323918560,20.0,15.967,15.96,20.0]
[1673323919518,66.99,15.967,15.96,20.0]
[1673323919723,66.99,15.967,15.957,19.00061681]
[1673323920048,66.99,15.967,15.958,20.0]
[1673323920550,66.99,15.967,15.958,39.00061681]
[1673323921090,20.0,15.965,15.955,19.00061681]
[1673323921284,47.0,15.964,15.953,20.0]
[1673323921498,111.8459,15.968,15.959,19.00061681]
[1673323922667,111.8459,15.968,15.96,20.0]
[1673323923067,111.8459,15.968,15.961,19.00061681]
[1673323926869,111.8459,15.968,15.962,17.0]
[1673323927279,111.8459,15.968,15.963,19.00061681]
[1673323928534,109.5091,15.973,15.963,19.00061681]
[1673323930944,66.97,15.972,15.963,19.00061681]
[1673323931150,20.0,15.972,15.963,19.00061681]
[1673323931671,66.97,15.972,15.963,19.00061681]
[1673323931881,109.5091,15.973,15.963,19.00061681]
[1673323932295,46.97,15.972,15.963,19.00061681]
[1673323932512,20.0,15.971,15.963,19.00061681]
[1673323933248,20.0,15.972,15.963,19.00061681]
[1673323934948,46.96,15.978,15.963,19.00061681]
[1673323935161,175.1698,15.983,15.964,117.40350751]
[1673323935360,155.1698,15.983,15.964,117.40350751]
[1673323935567,108.2298,15.983,15.965,49.40412432]
[1673323935785,108.2298,15.983,15.971,20.0]
[1673323935996,46.93,15.987,15.971,20.0]
[1673323936310,46.92,15.989,15.972,19.00061681]
[1673323936525,46.92,15.989,15.972,36.00061681]
[1673323936526,117.7848,15.989,15.972,36.00061681]
[1673323936728,46.93,15.988,15.972,36.00061681]
[1673323937048,46.93,15.988,15.974,20.0]
[1673323937243,46.93,15.988,15.973,19.00061681]
[1673323937455,46.93,15.988,15.975,19.00061681]
[1673323937872,20.0,15.987,15.975,19.00061681]
[1673323938077,46.93,15.986,15.975,19.00061681]
[1673323938292,93.0317476,15.984,15.975,19.00061681]
[1673323939761,93.0317476,15.984,15.976,20.0]
[1673323939981,93.0317476,15.984,15.977,66.96]
[1673323940175,42.0890476,15.984,15.978,20.0]
[1673323940388,42.0890476,15.984,15.979,46.95]
[1673323940599,42.0890476,15.984,15.98,20.0]
[1673323940836,0.0090476,15.984,15.982,20.0]
[1673323941020,160.2438,15.999,15.984,20.0]
[1673323941236,160.2438,15.999,15.985,20.0]
[1673323941447,113.3538,15.999,15.985,85.93061681]
[1673323941775,113.3538,15.999,15.986,39.00061681]
[1673323942178,46.9,15.998,15.987,19.00061681]
[1673323942492,46.9,15.998,15.973,60.11854053]
[1673323942706,46.9,15.998,15.973,71.67650053]
[1673323942934,20.0,15.997,15.98,26.77]
[1673323943120,46.9,15.998,15.981,46.95]
[1673323943337,113.3538,15.999,15.981,96.18079099]
[1673323943546,113.3538,15.999,15.982,19.00061681]
[1673323943767,113.3538,15.999,15.983,66.94]
[1673323944092,113.3538,15.999,15.984,39.00061681]
[1673323944287,113.3538,15.999,15.986,20.0]
[1673323944496,113.3538,15.999,15.987,20.0]
[1673323944708,113.3538,15.999,15.987,39.00061681]
[1673323944912,113.3538,15.999,15.987,20.0]
[1673323945128,46.9,15.998,15.985,20.0]
[1673323945445,46.9,15.998,15.988,19.00061681]
[1673323945657,46.9,15.998,15.989,20.0]
[1673323946487,46.9,15.998,15.989,39.00061681]
[1673323947555,46.9,15.998,15.989,20.0]
[1673323947771,20.0,15.997,15.987,19.00061681]
[1673323947960,46.9,15.996,15.988,20.0]
[1673323948477,20.0,15.995,15.988,20.0]
[1673323948694,46.9,15.996,15.988,20.0]
[1673323949335,20.0,15.996,15.988,20.0]
[1673323950277,46.9,15.997,15.988,20.0]
[1673323950497,66.9,15.998,15.988,39.00061681]
[1673323950809,66.9,15.998,15.988,20.0]
[1673323951022,20.0,15.998,15.984,19.00061681]
[1673323951230,46.9,15.997,15.985,20.0]
[1673323951431,20.0,15.996,15.985,20.0]
[1673323951870,20.0,15.996,15.983,20.0]
[1673323952082,46.9,15.997,15.984,20.0]
[1673323952289,20.0,15.996,15.984,20.0]
[1673323952501,20.0,15.996,15.985,19.00061681]
[1673323952714,20.0,15.996,15.986,20.0]
[1673323953145,20.0,15.996,15.987,19.00061681]
[1673323953458,46.9,15.997,15.987,19.00061681]
[1673323953647,46.9,15.997,15.988,20.0]
[1673323955248,113.3538,15.999,15.988,39.00061681]
[1673323955456,113.3538,15.999,15.989,20.0]
[1673323955666,113.3538,15.999,15.99,20.0]
[1673323955985,113.3538,15.999,15.99,39.00061681]
[1673323956403,20.0,15.998,15.99,39.00061681]
[1673323957643,20.0,15.998,15.99,20.0]
[1673323958078,20.0,15.998,15.985,20.0]
[1673323958611,20.0,15.998,15.985,39.00061681]
[1673323960170,46.9,15.997,15.98,73.57]
[1673323960398,20.0,15.996,15.982,19.00061681]
[1673323960698,20.0,15.994,15.982,19.00061681]
[1673323960907,46.91,15.993,15.982,19.00061681]
[1673323961107,20.0,15.992,15.982,19.00061681]
[1673323961318,136.6391,15.992,15.982,19.00061681]
[1673323962711,20.0,15.998,15.984,20.0]
[1673323963016,20.0,15.998,15.985,85.93061681]
[1673323963424,20.0,15.998,15.986,19.00061681]
[1673323963635,20.0,15.998,15.987,20.0]
[1673323964049,20.0,15.998,15.988,19.00061681]
[1673323964488,20.0,15.998,15.989,20.0]
[1673323969226,66.89,15.999,15.99,19.00061681]
[1673323969448,20.0,15.999,15.99,19.00061681]
[1673323969760,20.0,15.999,15.991,20.0]
[1673323974058,66.89,15.999,15.991,20.0]
[1673323974494,20.0,15.999,15.988,20.0]
[1673323975336,20.0,15.999,15.988,39.00061681]
[1673323982487,20.0,15.999,9.708,11.0]
[1673323982488,46.9,15.998,15.98,26.86]
[1673323982698,20.0,15.996,15.981,20.0]
[1673323982891,20.0,15.994,15.976,20.0]
[1673323983226,20.0,15.992,15.978,20.0]
[1673323983538,20.0,15.992,15.979,65.95061681]
[1673323983539,138.0128,15.992,15.979,65.95061681]
[1673323983944,138.0128,15.992,15.98,19.00061681]
[1673323984158,138.0128,15.992,15.976,46.96]
[1673323984372,20.0,15.989,15.972,46.97]
[1673323984577,46.93,15.988,15.973,19.00061681]
[1673323984780,20.0,15.987,15.973,19.00061681]
[1673323984994,20.0,15.985,15.973,19.00061681]
[1673323985302,20.0,15.983,15.973,19.00061681]
[1673323986382,112.6784,15.984,15.974,20.0]
[1673323986594,112.6784,15.984,15.975,46.96]
[1673323986786,112.6784,15.984,15.976,20.0]
[1673323986997,112.6784,15.984,15.977,46.96]
[1673323987221,112.6784,15.984,15.978,20.0]
[1673323987441,112.6784,15.984,15.979,46.95]
[1673323987628,112.6784,15.984,15.98,20.0]
[1673323988166,112.6784,15.984,15.979,20.0]
[1673323988569,112.6784,15.984,15.979,39.00061681]
[1673323991936,20.0,15.991,15.979,39.00061681]
[1673323992363,20.0,15.991,15.98,20.0]
[1673323992575,20.0,15.991,15.98,66.95]
[1673323992783,20.0,15.991,15.981,39.00061681]
[1673323992995,20.0,15.987,15.981,39.00061681]
[1673323994470,20.0,15.991,15.981,39.00061681]
[1673323994897,118.0128,15.992,15.982,19.00061681]
[1673323995514,20.0,15.991,15.982,19.00061681]
[1673323996051,20.0,15.987,15.982,19.00061681]
[1673323996906,20.0,15.987,15.981,20.0]
[1673323997102,20.0,15.987,15.977,19.00061681]
[1673323997312,20.0,15.987,15.978,20.0]
[1673324001623,20.0,15.987,15.979,19.00061681]
[1673324002056,20.0,15.987,15.98,20.0]
[1673324002773,20.0,15.989,15.98,20.0]
[1673324002981,20.0,15.987,15.98,20.0]
[1673324004268,20.0,15.989,15.98,20.0]
[1673324005002,20.0,15.987,15.98,20.0]
[1673324007215,20.0,15.989,15.98,20.0]
[1673324008052,20.0,15.987,15.98,20.0]
[1673324008262,20.0,15.987,15.978,20.0]
[1673324008579,20.0,15.987,15.977,39.00061681]
[1673324009316,20.0,15.989,15.978,20.0]
[1673324009627,20.0,15.987,15.978,20.0]
[1673324010574,20.0,15.989,15.978,20.0]
[1673324011310,20.0,15.989,15.978,39.00061681]
[1673324011528,20.0,15.987,15.979,20.0]
[1673324011830,118.0128,15.992,15.98,20.0]
[1673324012028,20.0,15.991,15.98,39.00061681]
[1673324012239,20.0,15.991,15.981,39.00061681]
[1673324012654,20.0,15.991,15.982,19.00061681]
[1673324019625,118.0128,15.992,15.982,19.00061681]
[1673324020024,20.0,15.991,15.982,19.00061681]
[1673324020973,20.0,15.991,15.981,20.0]
[1673324021184,20.0,15.991,15.979,19.00061681]
[1673324021397,20.0,15.991,15.98,20.0]
[1673324023092,20.0,15.989,15.98,20.0]
[1673324024255,20.0,15.989,15.976,40.0]
[1673324024440,20.0,15.987,15.976,40.0]
[1673324024778,20.0,15.987,15.977,19.00061681]
[1673324025085,20.0,15.987,15.978,20.0]
[1673324025484,117.4158,15.988,15.978,39.00061681]